bitfinex/quotes_BTCUSD_20240823
["timestamp","ask_amount","ask_price","bid_price","bid_amount"]
[1724422305356,0.322363,62042.0,62032.0,0.002]
[1724422305556,0.322363,62042.0,62033.0,0.32520698]
[1724422305943,0.161204,62033.0,62032.0,0.001]
[1724422306115,0.3,62033.0,62021.0,0.49229154]
[1724422306320,0.3,62033.0,62032.0,0.16400298]
[1724422306530,0.3,62033.0,62032.0,0.001]
[1724422306733,0.323,62033.0,62032.0,0.002]
[1724422306938,0.32528674,62033.0,62032.0,0.16600298]
[1724422307140,0.32528674,62033.0,62032.0,0.16400298]
[1724422307361,0.32528674,62033.0,62030.0,0.161212]
[1724422307362,0.34828674,62033.0,62030.0,0.161212]
[1724422307532,0.023,62032.0,62030.0,0.16400298]
[1724422307734,0.023,62032.0,62030.0,0.32521298]
[1724422307937,0.32528674,62033.0,62032.0,0.161207]
[1724422308146,0.32528674,62033.0,62032.0,1.32497298]
[1724422308147,0.02528674,62033.0,62032.0,1.32497298]
[1724422308356,0.02528674,62033.0,62032.0,1.00255898]
[1724422308549,0.02528674,62033.0,62032.0,1.32497298]
[1724422309506,0.02528674,62033.0,62032.0,0.68314498]
[1724422309719,0.02528674,62033.0,62032.0,0.97303798]
[1724422309894,0.02528674,62033.0,62032.0,1.29245198]
[1724422310407,0.02528674,62033.0,62032.0,1.31645198]
[1724422310782,0.02528674,62033.0,62032.0,0.97003798]
[1724422311009,0.02528674,62033.0,62032.0,0.64762398]
[1724422311184,0.02528674,62033.0,62032.0,1.14301676]
[1724422311384,0.02528674,62033.0,62032.0,1.46543076]
[1724422311585,0.02528674,62033.0,62032.0,1.30145198]
[1724422312175,0.02528674,62033.0,62032.0,1.62386598]
[1724422312343,0.02528674,62033.0,62032.0,2.10596598]
[1724422312576,0.02528674,62033.0,62032.0,2.09696598]
[1724422312781,0.02528674,62033.0,62032.0,2.19496598]
[1724422312890,0.02528674,62033.0,62032.0,2.38294476]
[1724422313089,0.02528674,62033.0,62032.0,2.28294476]
[1724422313298,0.02528674,62033.0,62032.0,2.26994476]
[1724422313728,0.02528674,62033.0,62032.0,2.26794476]
[1724422314128,0.02532674,62033.0,62032.0,2.27494476]
[1724422316528,0.02532674,62033.0,62032.0,1.98504476]
[1724422316671,0.02532674,62033.0,62032.0,1.82106598]
[1724422316876,0.02532674,62033.0,62032.0,1.63086598]
[1724422317071,0.02532674,62033.0,62032.0,1.30845198]
[1724422317486,0.02532674,62033.0,62032.0,1.03604068]
[1724422317890,0.02532674,62033.0,62032.0,1.35845468]
[1724422318155,0.02532674,62033.0,62032.0,1.52243346]
[1724422318352,0.02532674,62033.0,62032.0,1.35845468]
[1724422319739,0.02532674,62033.0,62032.0,1.63086598]
[1724422319989,0.02532674,62033.0,62032.0,1.34076198]
[1724422320489,0.02532674,62033.0,62032.0,1.33376198]
[1724422320996,0.02532674,62033.0,62032.0,1.65417598]
[1724422321196,0.02532674,62033.0,62032.0,1.91115476]
[1724422321873,0.02452674,62033.0,62032.0,1.91115476]
[1724422322200,0.02452674,62033.0,62032.0,1.58874076]
[1724422322402,0.02452674,62033.0,62032.0,1.59774076]
[1724422322611,0.02452674,62033.0,62032.0,1.92015476]
[1724422322939,0.02452674,62033.0,62032.0,1.59474076]
[1724422323087,0.02452674,62033.0,62032.0,1.50274076]
[1724422323690,0.02452674,62033.0,62032.0,1.51474076]
[1724422323891,0.02452674,62033.0,62032.0,1.97014776]
[1724422324143,0.02452674,62033.0,62032.0,2.23135476]
[1724422324260,0.02452674,62033.0,62032.0,1.51474076]
[1724422324657,0.02452674,62033.0,62032.0,1.83715476]
[1724422324875,0.02452674,62033.0,62032.0,2.16056876]
[1724422325077,0.02452674,62033.0,62032.0,1.83815476]
[1724422325540,0.02452674,62033.0,62032.0,2.64626876]
[1724422325738,0.02452674,62033.0,62032.0,2.74626876]
[1724422325936,0.02452674,62033.0,62032.0,2.74526876]
[1724422326220,0.02452674,62033.0,62032.0,2.42285476]
[1724422326385,0.001,62043.0,62042.0,2.05731208]
[1724422326615,0.001,62043.0,62042.0,2.25362506]
[1724422326739,0.001,62043.0,62042.0,2.21631506]
[1724422326945,0.2919,62043.0,62042.0,1.89395306]
[1724422327129,0.1949,62042.0,62032.0,0.012]
[1724422327332,0.1949,62042.0,62031.0,0.60668308]
[1724422327333,0.1949,62042.0,62041.0,0.48355]
[1724422327532,0.1949,62042.0,62041.0,0.161183]
[1724422327757,0.2919,62043.0,62041.0,0.21235958]
[1724422327956,0.2919,62043.0,62032.0,0.03231]
[1724422327957,0.2919,62043.0,62042.0,0.96990798]
[1724422328154,0.2919,62043.0,62032.0,0.03984213]
[1724422328155,0.3149,62043.0,62032.0,0.03984213]
[1724422328356,0.473,62038.0,62020.0,0.60668308]
[1724422328557,0.2791,62032.0,62024.0,0.03231]
[1724422328782,0.3487,62031.0,62024.0,0.03231]
[1724422328953,0.3487,62031.0,62008.0,1.09897462]
[1724422328954,0.3487,62024.0,62008.0,1.09897462]
[1724422329171,0.1949,62023.0,62009.0,0.65629452]
[1724422329379,0.3717,62022.0,62021.0,0.161235]
[1724422329592,0.3717,62022.0,62015.0,0.03231]
[1724422329760,0.3717,62022.0,62008.0,0.60668308]
[1724422329761,0.1949,62021.0,62008.0,0.60668308]
[1724422329963,0.1949,62021.0,62007.0,0.00815515]
[1724422330159,0.1949,62021.0,62020.0,0.161238]
[1724422330598,0.1949,62021.0,62020.0,0.165238]
[1724422330797,0.52413798,62021.0,62020.0,0.004]
[1724422330996,0.32923798,62021.0,62020.0,0.004]
[1724422331284,0.1964588,62021.0,62020.0,0.004]
[1724422331441,0.64870898,62021.0,62020.0,0.004]
[1724422331647,0.32523798,62021.0,62020.0,0.004]
[1724422331815,0.023,62022.0,62020.0,0.004]
[1724422332036,0.023,62022.0,62011.0,0.161259]
[1724422332228,0.48647698,62021.0,62007.0,0.00058241]
[1724422332428,0.16400298,62021.0,62009.0,0.161264]
[1724422332679,0.16400298,62021.0,62007.0,0.00058241]
[1724422332913,0.16400298,62021.0,62009.0,0.322529]
[1724422333127,0.1159,62037.0,62010.0,0.16400298]
[1724422333296,0.49229154,62034.0,62011.0,0.322521]
[1724422333530,0.49229154,62034.0,62007.0,0.00058241]
[1724422333531,0.322426,62030.0,62007.0,0.00058241]
[1724422333734,0.16400298,62029.0,62007.0,0.00058241]
[1724422333946,0.16400298,62024.0,62007.0,0.00058241]
[1724422334362,0.003,62021.0,62007.0,0.00058241]
[1724422334589,0.0159,62025.0,62007.0,0.00058241]
[1724422334590,0.161247,62017.0,62007.0,0.00058241]
[1724422334793,0.16400298,62016.0,62007.0,0.00058241]
[1724422335142,0.023,62015.0,62011.0,0.001]
[1724422335345,0.16400298,62014.0,62011.0,0.001]
[1724422335547,0.023,62013.0,62011.0,0.001]
[1724422335753,0.20112868,62012.0,62011.0,0.001]
[1724422335936,0.46658768,62012.0,62011.0,0.001]
[1724422336133,0.78910568,62012.0,62011.0,0.001]
[1724422336355,1.45004168,62012.0,62011.0,0.001]
[1724422336552,0.161313,61992.0,61976.0,0.49229154]
[1724422336716,0.18013428,61991.0,61976.0,0.49229154]
[1724422336916,0.18013428,61991.0,61964.0,0.003]
[1724422337125,0.161346,61979.0,61955.0,0.001]
[1724422337335,0.0161313,61991.0,61947.0,0.3296]
[1724422337336,0.16400298,61978.0,61957.0,0.001]
[1724422337540,0.16400298,61978.0,61950.0,0.60968308]
[1724422337541,0.49229154,61976.0,61950.0,0.60968308]
[1724422337753,0.161376,61967.0,61951.0,0.161415]
[1724422337949,0.161376,61967.0,61939.0,0.1925]
[1724422337950,0.16400298,61966.0,61934.0,0.001]
[1724422338171,0.16400298,61957.0,61936.0,0.003]
[1724422338377,0.0159,61971.0,61940.0,0.003]
[1724422338573,0.49229154,61964.0,61955.0,0.001]
[1724422338881,0.806997,61958.0,61957.0,0.001]
[1724422339026,0.32285,61949.0,61931.0,0.0002]
[1724422339233,0.322899,61939.0,61931.0,0.0002]
[1724422339454,0.16400298,61938.0,61931.0,0.0002]
[1724422339657,0.161467,61932.0,61931.0,0.0002]
[1724422339953,0.23884148,61932.0,61931.0,0.0002]
[1724422340175,0.16400298,61932.0,61931.0,0.0002]
[1724422340540,0.18933568,61932.0,61931.0,0.0002]
[1724422340752,0.35080268,61932.0,61931.0,0.0002]
[1724422340958,0.00177065,61931.0,61911.0,0.0002]
[1724422341157,0.32552198,61912.0,61911.0,0.0002]
[1724422341377,0.16400298,61912.0,61911.0,0.0002]
[1724422341583,0.13582979,61930.0,61911.0,0.0002]
[1724422341819,0.26400298,61929.0,61911.0,0.0002]
[1724422342028,0.16400298,61929.0,61911.0,0.0002]
[1724422342228,0.02533781,61925.0,61911.0,0.0002]
[1724422342429,0.16400298,61924.0,61911.0,0.0002]
[1724422342681,0.02533781,61925.0,61924.0,0.484464]
[1724422343139,0.02533781,61925.0,61924.0,0.161488]
[1724422343341,0.18934079,61925.0,61908.0,0.323058]
[1724422343542,0.014,61912.0,61911.0,0.162722]
[1724422343754,0.014,61912.0,61911.0,0.0012]
[1724422343971,0.014,61912.0,61911.0,0.485766]
[1724422344326,0.03933638,61912.0,61911.0,0.97581298]
[1724422344527,0.02533638,61912.0,61911.0,1.29785698]
[1724422344755,0.02533638,61912.0,61911.0,1.65183576]
[1724422344954,0.02533638,61912.0,61911.0,1.48785698]
[1724422345369,0.02533638,61912.0,61911.0,1.81090098]
[1724422345576,0.02533638,61912.0,61911.0,1.58785698]
[1724422345793,0.03933638,61912.0,61911.0,1.48885698]
[1724422346037,0.014,61924.0,61923.0,1.133433]
[1724422346154,0.0071,61951.0,61923.0,1.133433]
[1724422346155,0.0071,61951.0,61931.0,0.001]
[1724422346378,0.01855242,61972.0,61924.0,0.3591]
[1724422346379,0.0071,61958.0,61933.0,0.001]
[1724422346584,0.0071,61958.0,61951.0,0.161417]
[1724422346784,0.0071,61958.0,61940.0,0.001]
[1724422346993,0.0071,61958.0,61944.0,0.001]
[1724422347197,0.0071,61958.0,61957.0,0.161402]
[1724422347407,0.0071,61958.0,61957.0,0.484206]
[1724422347638,0.0159,61962.0,61959.0,0.161395]
[1724422347842,0.0159,61962.0,61947.0,0.322855]
[1724422347843,0.0071,61965.0,61964.0,0.161384]
[1724422348044,0.17110298,61965.0,61940.0,0.003]
[1724422348280,0.18111328,61964.0,61953.0,0.001]
[1724422348470,0.0071,61965.0,61947.0,0.001]
[1724422348674,0.16400298,61963.0,61951.0,0.161416]
[1724422348915,0.16400298,61963.0,61944.0,0.001]
[1724422349117,0.16400298,61963.0,61947.0,0.001]
[1724422349292,0.0071,61965.0,61958.0,0.001]
[1724422349509,0.0121,61965.0,61964.0,0.162384]
[1724422349717,0.0121,61965.0,61964.0,0.001]
[1724422349920,0.0121,61965.0,61964.0,0.323768]
[1724422350037,0.0121,61965.0,61964.0,0.485152]
[1724422350237,0.0121,61965.0,61964.0,0.484152]
[1724422350238,0.0071,61965.0,61964.0,0.484152]
[1724422350864,0.0071,61965.0,61964.0,0.80692]
[1724422351166,0.0071,61965.0,61964.0,1.130688]
[1724422351385,0.0071,61965.0,61964.0,1.129688]
[1724422351634,0.0071,61965.0,61964.0,0.80792]
[1724422351833,0.0201,61965.0,61964.0,0.485152]
[1724422352033,0.0201,61965.0,61964.0,0.162384]
[1724422352264,0.0201,61965.0,61964.0,0.486152]
[1724422352488,0.0201,61965.0,61964.0,0.80892]
[1724422352678,0.0201,61965.0,61964.0,0.80792]
[1724422353075,0.0251,61965.0,61964.0,0.80892]
[1724422353332,0.0251,61965.0,61964.0,1.131688]
[1724422353564,0.0201,61965.0,61964.0,1.62045898]
[1724422353801,0.0201,61965.0,61964.0,2.08602778]
[1724422354036,0.0071,61965.0,61964.0,1.97255898]
[1724422354351,0.0051,61965.0,61964.0,1.97355898]
[1724422354754,0.329693,61998.0,61982.0,0.161335]
[1724422354949,0.49229154,61983.0,61980.0,0.16134]
[1724422355153,0.16400298,61997.0,61978.0,0.322692]
[1724422355427,0.161304,61995.0,61982.0,0.161336]
[1724422355749,0.16400298,61994.0,61968.0,0.322747]
[1724422355860,0.13129645,61996.0,61982.0,0.001]
[1724422356061,0.0225,61998.0,61983.0,0.16400298]
[1724422356267,0.0225,61998.0,61986.0,0.001]
[1724422356268,0.0154,61998.0,61986.0,0.001]
[1724422356511,0.0154,61998.0,61986.0,0.16500298]
[1724422356788,0.0154,61998.0,61986.0,0.16700298]
[1724422357008,0.0154,61998.0,61997.0,0.161298]
[1724422357175,0.0154,61998.0,61997.0,0.64989698]
[1724422357379,0.0154,61998.0,61997.0,1.29408898]
[1724422357380,0.0044,61998.0,61997.0,1.29408898]
[1724422357594,0.0044,61998.0,61997.0,0.97149298]
[1724422357733,0.0044,61998.0,61997.0,1.29408898]
[1724422357936,0.0044,62016.0,62008.0,0.001]
[1724422358136,0.0046,62019.0,62018.0,0.806217]
[1724422358416,0.0046,62019.0,62018.0,1.29370698]
[1724422358569,0.0046,62019.0,62018.0,1.16261998]
[1724422358776,0.0046,62019.0,62008.0,0.1914]
[1724422358978,0.0737,62018.0,62001.0,0.001]
[1724422359180,0.0046,62019.0,62008.0,0.001]
[1724422359341,0.02992149,62025.0,62008.0,0.16500298]
[1724422359739,0.16400298,62024.0,62000.0,0.1844]
[1724422359943,0.322465,62023.0,62001.0,0.16500298]
[1724422360144,0.02992149,62025.0,62010.0,0.322527]
[1724422360346,0.02992149,62025.0,62007.0,0.001]
[1724422360551,0.02992149,62025.0,62008.0,0.16500298]
[1724422360759,0.0071,62037.0,62019.0,0.322479]
[1724422361016,0.0071,62037.0,62008.0,0.16500298]
[1724422361017,0.49229154,62035.0,62008.0,0.16600298]
[1724422361213,0.16400298,62032.0,62011.0,0.0004022]
[1724422361611,0.0071,62037.0,62024.0,0.001]
[1724422361811,0.065623,62043.0,62031.0,0.001]
[1724422361812,0.00087146,62036.0,62031.0,0.001]
[1724422361977,0.00087146,62036.0,62035.0,0.161199]
[1724422362177,0.00087146,62036.0,62019.0,0.3906]
[1724422362417,0.004,62035.0,62034.0,0.483604]
[1724422362616,0.004,62035.0,62034.0,0.161201]
[1724422363040,0.004,62035.0,62034.0,0.806007]
[1724422363240,0.00848911,62045.0,62030.0,0.322424]
[1724422363567,0.00848911,62045.0,62020.0,0.16400298]
[1724422363568,0.005,62032.0,62020.0,0.16400298]
[1724422363741,0.65629452,62044.0,62019.0,0.3896]
[1724422363742,0.322385,62038.0,62019.0,0.3896]
[1724422363880,0.0322385,62037.0,62019.0,0.3896]
[1724422364080,0.00848911,62045.0,62022.0,0.001]
[1724422364294,0.00579331,62052.0,62031.0,0.001]
[1724422364497,0.00579331,62052.0,62034.0,0.323403]
[1724422364498,0.005,62035.0,62034.0,0.323403]
[1724422364718,0.005,62035.0,62034.0,0.97100998]
[1724422364898,0.00579331,62052.0,62034.0,0.97100998]
[1724422365125,0.49229154,62051.0,62038.0,0.32238]
[1724422365482,0.05891584,62052.0,62035.0,0.16400298]
[1724422365757,0.00579331,62052.0,62044.0,0.322347]
[1724422365967,0.49229154,62067.0,62040.0,0.003]
[1724422366260,0.064596,62070.0,62046.0,0.3651]
[1724422366261,0.49229154,62059.0,62046.0,0.3651]
[1724422366462,0.005,62051.0,62049.0,0.161162]
[1724422366665,0.005,62051.0,62047.0,0.161168]
[1724422366868,0.0135,62049.0,62046.0,0.161169]
[1724422367163,0.0135,62049.0,62042.0,0.001]
[1724422367317,0.00112912,62049.0,62044.0,0.322347]
[1724422367665,0.00112912,62049.0,62048.0,0.483496]
[1724422367804,0.00112912,62049.0,62048.0,0.793627]
[1724422368136,0.00112912,62049.0,62046.0,0.161168]
[1724422368347,0.00112912,62049.0,62043.0,0.322355]
[1724422368526,0.00112912,62049.0,62042.0,0.001]
[1724422368902,0.00112912,62049.0,62038.0,0.001]
[1724422369125,0.00112912,62049.0,62031.0,0.3839]
[1724422369126,0.16400298,62048.0,62023.0,0.3839]
[1724422369330,0.00112912,62049.0,62044.0,0.001]
[1724422369733,0.00112912,62049.0,62040.0,0.32337]
[1724422369947,0.00112912,62049.0,62040.0,0.001]
[1724422370146,0.00112912,62049.0,62041.0,0.322366]
[1724422370579,0.00112912,62049.0,62040.0,0.3667]
[1724422370580,0.001,62049.0,62040.0,0.3667]
[1724422371200,0.001,62049.0,62038.0,0.001]
[1724422371330,0.001,62049.0,62042.0,0.001]
[1724422371752,0.001,62049.0,62035.0,0.001]
[1724422371753,0.161168,62047.0,62035.0,0.322396]
[1724422371948,0.161164,62049.0,62033.0,0.322408]
[1724422372174,0.0301164,62049.0,62040.0,0.001]
[1724422372383,0.161165,62049.0,62041.0,0.001]
[1724422372690,0.161166,62048.0,62041.0,0.001]
[1724422372898,0.014,62049.0,62032.0,0.001]
[1724422372899,0.028,62049.0,62032.0,0.001]
[1724422373096,0.08041824,62113.0,62032.0,0.16500298]
[1724422373403,0.028,62049.0,62032.0,0.16500298]
[1724422373578,0.161171,62046.0,62034.0,0.1612]
[1724422373758,0.0189171,62045.0,62032.0,0.16500298]
[1724422373960,0.0189171,62045.0,62030.0,0.692121]
[1724422374169,0.0189171,62045.0,62020.0,0.1965]
[1724422374170,0.16400298,62044.0,62020.0,0.1965]
[1724422374503,0.161197,62036.0,62022.0,0.322465]
[1724422374737,0.161197,62036.0,62020.0,0.1975]
[1724422374738,0.02528747,62042.0,62020.0,0.1935]
[1724422374848,0.16119,62039.0,62026.0,0.161221]
[1724422375043,0.02528747,62042.0,62022.0,0.322465]
[1724422375246,0.02528747,62042.0,62020.0,0.1945]
[1724422375247,0.161198,62036.0,62032.0,0.001]
[1724422375502,0.161199,62035.0,62022.0,0.161231]
[1724422375647,0.161192,62038.0,62026.0,0.161221]
[1724422375846,0.483597,62035.0,62034.0,0.001]
[1724422376051,0.161199,62035.0,62034.0,0.001]
[1724422376259,0.02628853,62036.0,62027.0,0.161219]
[1724422376469,0.02628853,62036.0,62026.0,0.161221]
[1724422376768,0.014,62035.0,62026.0,0.161221]
[1724422376944,0.014,62035.0,62027.0,0.16400298]
[1724422377142,0.48330156,62055.0,62035.0,0.001]
[1724422377350,0.16400298,62072.0,62037.0,0.001]
[1724422377553,0.16400298,62072.0,62034.0,0.002]
[1724422377554,0.001,62066.0,62038.0,0.15300298]
[1724422377756,0.5,62059.0,62044.0,0.32235]
[1724422377927,0.5,62059.0,62038.0,0.16840328]
[1724422377928,0.661137,62059.0,62042.0,0.1945]
[1724422378131,0.001,62058.0,62045.0,0.161172]
[1724422378332,0.001,62058.0,62043.0,0.322356]
[1724422378333,0.001,62056.0,62044.0,0.322351]
[1724422378549,0.161143,62057.0,62043.0,0.322355]
[1724422378747,0.161143,62057.0,62042.0,0.1945]
[1724422378748,0.002,62055.0,62042.0,0.1945]
[1724422378952,0.02528258,62054.0,62049.0,0.161161]
[1724422379149,0.02528258,62054.0,62042.0,0.1945]
[1724422379380,0.02528258,62054.0,62048.0,0.161164]
[1724422379573,0.02528258,62054.0,62047.0,0.3696]
[1724422379894,0.47690407,62059.0,62047.0,0.3696]
[1724422380215,0.004,62055.0,62047.0,0.530766]
[1724422380394,0.004,62055.0,62042.0,0.1965]
[1724422380598,0.004,62055.0,62052.0,0.161154]
[1724422380599,0.003,62055.0,62052.0,0.161154]
[1724422380747,0.003,62055.0,62054.0,0.161149]
[1724422380947,0.003,62055.0,62053.0,0.161151]
[1724422381159,0.003,62055.0,62054.0,0.161149]
[1724422381581,0.003,62055.0,62054.0,1.06769638]
[1724422381810,0.52690407,62059.0,62058.0,0.483418]
[1724422382008,0.52690407,62059.0,62058.0,0.96969998]
[1724422382208,0.52690407,62059.0,62058.0,1.29197898]
[1724422382431,0.52690407,62059.0,62058.0,0.483418]
[1724422382626,0.52690407,62059.0,62058.0,1.23002098]
[1724422382849,0.52690407,62059.0,62058.0,1.55229998]
[1724422383012,0.52690407,62059.0,62058.0,1.87457898]
[1724422383362,0.52790407,62059.0,62058.0,1.87557898]
[1724422383677,0.52790407,62059.0,62058.0,1.87657898]
[1724422384037,0.47852556,62059.0,62058.0,1.23002098]
[1724422384258,0.47852556,62059.0,62058.0,1.87457898]
[1724422384489,0.00059364,62076.0,62075.0,0.483285]
[1724422384662,0.00059364,62076.0,62075.0,0.5469]
[1724422385076,0.00059364,62076.0,62075.0,1.19418798]
[1724422385370,0.02586383,62076.0,62075.0,1.51637798]
[1724422385575,0.02086383,62076.0,62075.0,1.83856798]
[1724422386015,0.49526912,62083.0,62082.0,1.343385]
[1724422386220,0.49526912,62083.0,62082.0,1.18523398]
[1724422386395,0.49526912,62083.0,62082.0,1.50738798]
[1724422386592,0.44689061,62083.0,62082.0,1.82954198]
[1724422386734,0.44689061,62083.0,62082.0,1.83154198]
[1724422386945,0.24689061,62083.0,62082.0,1.83154198]
[1724422387315,0.025249,62087.0,62086.0,0.485199]
[1724422387510,0.025249,62087.0,62086.0,0.3773]
[1724422388212,0.025249,62087.0,62079.0,0.3764]
[1724422388429,0.025249,62087.0,62081.0,0.161079]
[1724422388744,0.03784616,62087.0,62086.0,0.001]
[1724422388952,0.02484616,62087.0,62086.0,0.161066]
[1724422389156,0.02484616,62087.0,62086.0,0.66340858]
[1724422389336,0.03784616,62087.0,62086.0,0.66440858]
[1724422389508,0.03784616,62087.0,62086.0,0.66340858]
[1724422389713,0.02584616,62087.0,62086.0,0.64720198]
[1724422390116,0.02484616,62087.0,62086.0,1.03130198]
[1724422390322,0.02484616,62087.0,62086.0,1.35343498]
[1724422390522,0.00369316,62094.0,62089.0,0.322118]
[1724422390699,0.00369316,62094.0,62093.0,0.5673]
[1724422390897,0.00369316,62094.0,62093.0,1.30388358]
[1724422391132,0.00369316,62094.0,62093.0,1.53654498]
[1724422391653,0.00369316,62094.0,62093.0,1.9096772]
[1724422391890,0.00369316,62094.0,62093.0,1.53854498]
[1724422392079,0.00369316,62094.0,62093.0,1.58991353]
[1724422392286,0.01669316,62094.0,62093.0,1.91301053]
[1724422392485,0.01669316,62094.0,62093.0,2.07698931]
[1724422392886,0.01669316,62094.0,62093.0,1.70152376]
[1724422393089,0.01669316,62094.0,62093.0,0.3861]
[1724422393297,0.322073,62098.0,62093.0,0.002]
[1724422393442,0.322051,62102.0,62093.0,0.001]
[1724422393643,0.00060351,62106.0,62093.0,0.001]
[1724422393871,0.00060351,62106.0,62104.0,0.3772]
[1724422394027,0.00060351,62106.0,62097.0,0.3772]
[1724422394470,0.00060351,62106.0,62093.0,0.001]
[1724422394673,0.00060351,62106.0,62094.0,0.322091]
[1724422394933,0.00060351,62106.0,62098.0,0.35030298]
[1724422395136,0.00060351,62106.0,62099.0,0.3814]
[1724422395316,0.00060351,62106.0,62100.0,0.16400298]
[1724422395513,0.00060351,62106.0,62101.0,0.161026]
[1724422395725,0.02525905,62105.0,62102.0,0.16400298]
[1724422396047,0.02525905,62105.0,62104.0,0.16302]
[1724422396245,0.02525905,62105.0,62104.0,1.35250298]
[1724422396555,0.02525905,62105.0,62104.0,1.86814298]
[1724422396665,0.02525905,62105.0,62104.0,1.22406298]
[1724422396885,0.02525905,62105.0,62104.0,1.70081378]
[1724422397091,0.02525905,62105.0,62104.0,0.04518981]
[1724422397092,0.41925905,62105.0,62104.0,0.04518981]
[1724422397293,0.41925905,62105.0,62104.0,0.16400298]
[1724422397294,0.02525905,62105.0,62104.0,0.16400298]
[1724422397945,0.02525905,62105.0,62104.0,0.56640298]
[1724422398156,0.02625905,62105.0,62104.0,0.16400298]
[1724422398961,0.02625905,62105.0,62104.0,0.16500298]
[1724422399334,0.03925905,62105.0,62104.0,0.16500298]
[1724422399556,0.04025905,62105.0,62104.0,0.16600298]
[1724422399748,0.04025905,62105.0,62104.0,0.16500298]
[1724422399749,0.02625905,62105.0,62104.0,0.16500298]
[1724422400302,0.04025905,62105.0,62104.0,0.002]
[1724422400502,0.60437605,62105.0,62104.0,0.002]
[1724422400745,0.04025905,62105.0,62104.0,0.002]
[1724422401137,0.03925905,62105.0,62104.0,0.16500298]
[1724422401324,0.05325905,62105.0,62104.0,0.16500298]
[1724422401767,0.02525905,62105.0,62104.0,0.16400298]
[1724422401970,0.014,62105.0,62104.0,0.78620328]
[1724422402229,0.028,62105.0,62104.0,1.25336328]
[1724422402445,0.0055,62111.0,62110.0,0.678313]
[1724422402651,0.0055,62111.0,62110.0,0.75520298]
[1724422402794,0.0055,62111.0,62110.0,1.23821598]
[1724422402957,0.0055,62111.0,62110.0,1.73477375]
[1724422403166,0.0055,62111.0,62110.0,1.68424658]
[1724422403748,0.03075557,62111.0,62110.0,1.73368453]
[1724422403956,0.006895,62150.0,62112.0,0.10079244]
[1724422404166,0.44391303,62142.0,62141.0,1.12176508]
[1724422404323,0.00904363,62156.0,62141.0,0.92853108]
[1724422404532,0.00904363,62156.0,62151.0,0.52059447]
[1724422404947,0.00904363,62156.0,62155.0,0.57030298]
[1724422405140,0.00904363,62156.0,62142.0,0.04846282]
[1724422405345,0.00904363,62156.0,62155.0,0.57030298]
[1724422405706,0.1877,62158.0,62155.0,0.16400298]
[1724422405921,0.1877,62158.0,62129.0,0.52059447]
[1724422405922,0.6530733,62157.0,62129.0,0.52059447]
[1724422406130,0.6530733,62157.0,62134.0,0.49229154]
[1724422406131,0.577,62137.0,62134.0,0.49229154]
[1724422406464,0.00047101,62134.0,62119.0,0.49229154]
[1724422406666,0.160976,62121.0,62120.0,0.16400298]
[1724422406888,0.00047101,62134.0,62120.0,0.16400298]
[1724422407207,0.00047101,62134.0,62123.0,0.52059447]
[1724422407416,0.00047101,62134.0,62130.0,0.53740298]
[1724422407922,0.321944,62123.0,62114.0,0.4078]
[1724422408121,0.32203,62106.0,62105.0,0.49229154]
[1724422408355,0.5784,62122.0,62095.0,0.4078]
[1724422408559,0.321993,62113.0,62096.0,0.11119945]
[1724422408769,0.63624,62122.0,62095.0,0.4078]
[1724422408910,0.322039,62105.0,62095.0,0.4078]
[1724422409123,0.322987,62115.0,62099.0,0.49229154]
[1724422409319,0.1,62121.0,62105.0,0.002]
[1724422409523,0.161015,62106.0,62105.0,0.002]
[1724422409699,0.161015,62106.0,62084.0,0.49229154]
[1724422409700,0.4029,62120.0,62087.0,0.4108]
[1724422409903,0.16104,62096.0,62095.0,0.001]
[1724422410101,0.483121,62096.0,62095.0,0.001]
[1724422410303,0.16104,62096.0,62095.0,0.001]
[1724422410529,0.1933,62107.0,62095.0,0.16500298]
[1724422410728,0.161038,62097.0,62096.0,0.16400298]
[1724422410928,0.16792149,62107.0,62096.0,0.16500298]
[1724422411105,0.161038,62097.0,62096.0,0.16500298]
[1724422411303,0.16792149,62107.0,62096.0,0.18108676]
[1724422411677,0.322001,62112.0,62105.0,0.004]
[1724422411804,0.32203,62106.0,62105.0,0.004]
[1724422412005,0.1,62116.0,62089.0,0.49229154]
[1724422412203,0.1,62116.0,62088.0,0.3782]
[1724422412204,0.001,62096.0,62095.0,0.006]
[1724422412407,0.001,62096.0,62095.0,0.17000298]
[1724422412607,0.001,62097.0,62095.0,0.16400298]
[1724422412849,0.001,62097.0,62096.0,0.16400298]
[1724422413006,0.006,62107.0,62096.0,0.18140328]
[1724422413619,0.006,62107.0,62106.0,0.54110298]
[1724422413833,0.006,62107.0,62106.0,0.72710298]
[1724422414033,0.006,62107.0,62106.0,1.21014798]
[1724422414633,4e-05,62134.0,62115.0,0.5615]
[1724422414804,4e-05,62134.0,62130.0,0.16400298]
[1724422415163,4e-05,62134.0,62133.0,0.16400298]
[1724422416200,0.01304,62134.0,62133.0,0.16400298]
[1724422416406,0.02104,62134.0,62133.0,1.20995646]
[1724422416606,0.00804,62134.0,62133.0,0.84499863]
[1724422416805,0.00804,62134.0,62133.0,0.88387939]
[1724422416980,0.00804,62134.0,62133.0,1.16688863]
[1724422417187,4e-05,62156.0,62135.0,0.001]
[1724422417396,0.28379675,62179.0,62155.0,0.73950298]
[1724422417612,0.1807,62177.0,62155.0,0.54720298]
[1724422417809,0.160885,62156.0,62155.0,0.16400298]
[1724422418009,0.321785,62154.0,62147.0,0.4088]
[1724422418355,0.3743,62168.0,62148.0,0.16400298]
[1724422418487,0.160892,62154.0,62148.0,0.16400298]
[1724422418688,0.004,62156.0,62150.0,0.49229154]
[1724422418913,0.004,62156.0,62151.0,0.16400298]
[1724422418914,0.002,62156.0,62151.0,0.16400298]
[1724422419085,0.002,62156.0,62141.0,0.3857]
[1724422419285,0.005,62154.0,62147.0,0.001]
[1724422419512,0.321786,62153.0,62148.0,0.16400298]
[1724422419761,0.3743,62168.0,62148.0,0.18040328]
[1724422419970,0.005,62156.0,62152.0,0.3854]